fUSD/lending_fUSD_20240329
["ID","MTS","AMOUNT","RATE_DAILY","PERIOD"]
[320921455,1711710650410,-1516.89,0.00049589,120]
[320921456,1711710650419,-565.45,0.00049589,120]
[320921457,1711710650429,-500.0,0.00049589,120]
[320921458,1711710650438,-915.09,0.00049589,120]
[320921459,1711710650448,-1327.55,0.00049589,120]
[320921460,1711710650459,-2105.94,0.00049589,120]
[320921461,1711710650469,-555.47,0.00049589,120]
[320921462,1711710650479,-1465.08,0.00049589,120]
[320921463,1711710650489,-500.0,0.00049589,120]
[320921464,1711710650498,-1119.02,0.00049589,120]
[320921465,1711710650508,-2801.15,0.00049589,120]
[320921466,1711710650517,-500.0,0.00049589,120]
[320921467,1711710650527,-1590.52,0.00049589,120]
[320921468,1711710650537,-443.76214302,0.00049589,120]
[320921469,1711710650547,-1260.15,0.00049589,120]
[320921470,1711710650557,-897.12,0.00049589,120]
[320921471,1711710650566,-500.0,0.00049589,120]
[320921472,1711710650576,-500.0,0.00049589,120]
[320921473,1711710650586,-500.0,0.00049589,120]
[320921474,1711710650596,-548.07501591,0.00049589,120]
[320921475,1711710650605,-987.13,0.00049589,120]
[320921476,1711710650615,-821.77,0.00049589,120]
[320921477,1711710650625,-500.0,0.00049589,120]
[320921478,1711710650636,-1164.64,0.00049589,120]
[320921479,1711710650649,-1208.36,0.00049589,120]
[320921480,1711710650660,-11808.29,0.00049589,120]
[320921481,1711710650669,-2773.26,0.00049589,120]
[320921482,1711710650682,-579.48,0.00049589,120]
[320921483,1711710650692,-500.0,0.00049589,120]
[320921484,1711710650705,-500.0,0.00049589,120]
[320921485,1711710650718,-857.42,0.00049589,120]
[320921486,1711710650730,-500.0,0.00049589,120]
[320921487,1711710650746,-3628.52,0.00049589,120]
[320921488,1711710650755,-500.0,0.00049589,120]
[320921489,1711710650766,-500.0,0.00049589,120]
[320921490,1711710650776,-909.86,0.00049589,120]
[320921491,1711710650786,-1522.9,0.00049589,120]
[320921492,1711710650796,-500.0,0.00049589,120]
[320921493,1711710650807,-804.38,0.00049589,120]
[320921494,1711710650820,-500.0,0.00049589,120]
[320921495,1711710650830,-2799.29,0.00049589,120]
[320921496,1711710650841,-1620.87,0.00049589,120]
[320921497,1711710650851,-885.3,0.00049589,120]
[320921498,1711710650861,-904.72,0.00049589,120]
[320921499,1711710650871,-960.55,0.00049589,120]
[320921500,1711710650881,-602.06,0.00049589,120]
[320921501,1711710650890,-1913.4,0.00049589,120]
[320921502,1711710650900,-500.0,0.00049589,120]
[320921503,1711710650909,-1273.78,0.00049589,120]
[320921504,1711710650919,-500.0,0.00049589,120]
[320921505,1711710650928,-742.11,0.00049589,120]
[320921506,1711710650938,-1248.65,0.00049589,21]
[320921507,1711710650948,-968.95,0.00049589,120]
[320921508,1711710650958,-1163.45,0.00049589,120]
[320921509,1711710650968,-691.01,0.00049589,120]
[320921510,1711710650977,-500.0,0.00049589,120]
[320921511,1711710650987,-1903.05,0.00049589,120]
[320921512,1711710650997,-705.61,0.00049589,120]
[320921513,1711710651007,-3676.12,0.00049589,120]
[320921514,1711710651016,-500.0,0.00049589,120]
[320921515,1711710651026,-732.51,0.00049589,120]
[320921516,1711710651036,-3161.14,0.00049589,120]
[320921517,1711710651050,-500.0,0.00049589,120]
[320921518,1711710651060,-639.96953987,0.00049589,120]
[320921519,1711710651069,-500.0,0.00049589,120]
[320921520,1711710651079,-500.0,0.00049589,120]
[320921521,1711710651088,-516.41,0.00049589,120]
[320921522,1711710651098,-526.41,0.00049589,120]
[320921523,1711710651108,-1058.48,0.00049589,120]
[320921524,1711710651118,-963.86,0.00049589,120]
[320921525,1711710651128,-789.66,0.00049589,120]
[320921526,1711710651138,-1501.36,0.00049589,120]
[320921527,1711710651147,-500.0,0.00049589,120]
[320921528,1711710651157,-178.57185091,0.00049589,120]
[320921529,1711710651167,-621.96,0.00049589,120]
[320921530,1711710651177,-500.0,0.00049589,120]
[320921531,1711710651187,-500.0,0.00049589,120]
[320921532,1711710651196,-500.0,0.00049589,120]
[320921533,1711710651206,-753.8,0.00049589,120]
[320921534,1711710651218,-1147.13,0.00049589,120]
[320921535,1711710651228,-500.0,0.00049589,120]
[320921536,1711710651238,-500.0,0.00049589,120]
[320921537,1711710651247,-2333.25,0.00049589,120]
[320921538,1711710651257,-1023.54,0.00049589,120]
[320921539,1711710651266,-372.86631155,0.00049589,120]
[320921540,1711710651276,-500.0,0.00049589,120]
[320921541,1711710651286,-500.0,0.00049589,120]
[320921542,1711710651296,-894.67,0.00049589,120]
[320921543,1711710651306,-1616.3,0.00049589,120]
[320921544,1711710651316,-1247.71,0.00049589,120]
[320921545,1711710651326,-718.12,0.00049589,120]
[320921546,1711710651335,-500.0,0.00049589,120]
[320921547,1711710651344,-500.0,0.00049589,120]
[320921548,1711710651353,-500.0,0.00049589,120]
[320921549,1711710651363,-500.0,0.00049589,120]
[320921550,1711710651373,-500.0,0.00049589,120]
[320921551,1711710651383,-500.0,0.00049589,120]
[320921552,1711710651392,-1571.67,0.00049589,120]
[320921553,1711710651402,-2521.44,0.00049589,120]
[320921554,1711710651411,-500.0,0.00049589,120]
[320921555,1711710651422,-517.07,0.00049589,120]
[320921556,1711710651432,-3522.2,0.00049589,120]
[320921557,1711710651442,-500.0,0.00049589,120]
[320921558,1711710651452,-500.0,0.00049589,120]
[320921559,1711710651461,-983.13,0.00049589,120]
[320921560,1711710651471,-2854.73,0.00049589,120]
[320921561,1711710651481,-500.0,0.00049589,120]
[320921562,1711710651491,-500.0,0.00049694,90]
[320921563,1711710651501,-150.139,0.00049728,30]
[320921564,1711710651511,-1923.90875769,0.00049763,26]
[320921565,1711710651520,-162.95,0.0004979,120]
[320921566,1711710651530,-12371.69132285,0.000498,2]
[320921567,1711710651540,-18043.94796957,0.000498,120]
[320921568,1711710651550,-1700.0,0.000498,18]
[320921569,1711710651559,-690.09,0.00049841,2]
[320921570,1711710651570,-256.63180057,0.00049853,2]
[320921571,1711710651580,-500.0,0.00049863,120]
[320921572,1711710651589,-500.0,0.00049863,120]
[320921573,1711710651599,-500.0,0.00049863,120]
[320921574,1711710651609,-500.0,0.00049863,120]
[320921575,1711710651619,-500.0,0.00049863,120]
[320921576,1711710651629,-500.0,0.00049863,120]
[320921577,1711710651644,-500.0,0.00049863,120]
[320921578,1711710651654,-500.0,0.00049863,120]
[320921579,1711710651664,-500.0,0.00049863,120]
[320921580,1711710651675,-500.0,0.00049863,120]
[320921581,1711710651685,-563.98,0.00049863,2]
[320921582,1711710651695,-500.0,0.00049863,120]
[320921583,1711710651706,-229.06135444,0.00049863,120]
[320921584,1711710651720,-500.0,0.00049863,120]
[320921585,1711710651731,-500.0,0.00049863,120]
[320921586,1711710651742,-500.0,0.00049863,120]
[320921587,1711710651752,-500.0,0.00049863,120]
[320921588,1711710651763,-500.0,0.00049863,120]
[320921589,1711710651773,-500.0,0.00049863,120]
[320921590,1711710651783,-500.0,0.00049863,120]
[320921591,1711710651793,-530.05,0.00049863,120]
[320921592,1711710651803,-500.0,0.00049863,120]
[320921593,1711710651815,-500.0,0.00049863,120]
[320921594,1711710651825,-500.0,0.00049863,120]
[320921595,1711710651835,-500.0,0.00049863,120]
[320921596,1711710651846,-518.89,0.00049863,120]
[320921597,1711710651856,-500.0,0.00049863,120]
[320921598,1711710651866,-500.0,0.00049863,120]
[320921599,1711710651876,-451.79573513,0.00049863,120]
[320921600,1711710651886,-500.0,0.00049863,120]
[320921601,1711710651896,-2712.05,0.00049863,120]
[320921602,1711710651906,-543.34,0.00049863,120]
[320921603,1711710651917,-500.0,0.00049863,120]
[320921604,1711710651926,-198.23342316,0.00049863,120]
[320921605,1711710651936,-168.59569507,0.00049863,120]
[320921606,1711710651946,-500.0,0.00049863,120]
[320921607,1711710651956,-559.05,0.00049863,120]
[320921608,1711710651966,-500.0,0.00049863,120]
[320921609,1711710651976,-500.0,0.00049863,120]
[320921610,1711710651985,-185.72903132,0.00049863,120]
[320921611,1711710651996,-500.0,0.00049863,120]
[320921612,1711710652005,-500.0,0.00049863,120]
[320921613,1711710652015,-445.93138929,0.00049863,30]
[320921614,1711710652024,-500.0,0.00049863,120]
[320921615,1711710652033,-500.0,0.00049863,120]
[320921616,1711710652043,-500.0,0.00049863,120]
[320921617,1711710652053,-843.31,0.00049863,120]
[320921618,1711710652063,-500.0,0.00049863,120]
[320921619,1711710652072,-500.0,0.00049863,120]
[320921620,1711710652082,-500.0,0.00049863,120]
[320921621,1711710652092,-500.0,0.00049863,120]
[320921622,1711710652101,-500.0,0.00049863,120]
[320921623,1711710652110,-500.0,0.00049863,120]
[320921624,1711710652119,-500.0,0.00049863,120]
[320921625,1711710652129,-500.0,0.00049863,120]
[320921626,1711710652138,-582.72788107,0.00049863,120]
[320921627,1711710652147,-500.0,0.00049863,120]
[320921628,1711710652156,-500.0,0.00049863,120]
[320921629,1711710652167,-500.0,0.00049863,120]
[320921630,1711710652177,-620.95,0.00049863,120]
[320921631,1711710652186,-500.0,0.00049863,120]
[320921632,1711710652195,-500.0,0.00049863,120]
[320921633,1711710652205,-500.0,0.00049863,120]
[320921634,1711710652215,-595.94434315,0.00049863,120]
[320921635,1711710652226,-500.0,0.00049863,120]
[320921636,1711710652236,-500.0,0.00049863,120]
[320921637,1711710652246,-500.0,0.00049863,120]
[320921638,1711710652260,-500.0,0.00049863,120]
[320921639,1711710652273,-500.0,0.00049863,2]
[320921640,1711710652285,-360.1840028,0.00049863,120]
[320921641,1711710652298,-550.37,0.00049863,120]
[320921642,1711710652310,-191.04,0.00049863,120]
[320921643,1711710652321,-500.0,0.00049863,120]
[320921644,1711710652331,-500.0,0.00049863,120]
[320921645,1711710652344,-500.0,0.00049863,120]
[320921646,1711710652356,-500.0,0.00049863,120]
[320921647,1711710652368,-500.0,0.00049863,120]
[320921648,1711710652380,-195.4556748,0.00049863,120]
[320921649,1711710652393,-500.0,0.00049863,120]
[320921650,1711710652404,-500.0,0.00049863,120]
[320921651,1711710652416,-500.0,0.00049863,120]
[320921652,1711710652429,-500.0,0.00049863,120]
[320921653,1711710652442,-530.13,0.00049863,120]
[320921654,1711710652452,-386.06221529,0.00049863,120]
[320921655,1711710652463,-500.0,0.00049863,120]
[320921656,1711710652475,-500.0,0.00049863,120]
[320921657,1711710652486,-500.0,0.00049863,120]
[320921658,1711710652498,-500.0,0.00049863,120]
[320921659,1711710652511,-500.0,0.00049863,120]
[320921660,1711710652522,-1175.48,0.00049863,120]
[320921661,1711710652533,-529.43235534,0.00049863,120]
[320921662,1711710652545,-500.0,0.00049863,120]
[320921663,1711710652558,-500.0,0.00049863,120]
[320921664,1711710652571,-560.38,0.00049863,120]
[320921665,1711710652582,-500.0,0.00049863,120]
[320921666,1711710652593,-167.22027867,0.00049863,7]
[320921667,1711710652604,-500.0,0.00049863,120]
[320921668,1711710652616,-270.47156265,0.00049863,120]
[320921669,1711710652629,-500.0,0.00049863,120]
[320921670,1711710652644,-500.0,0.00049863,120]
[320921671,1711710652657,-500.0,0.00049863,120]
[320921672,1711710652670,-500.0,0.00049863,120]
[320921673,1711710652683,-500.0,0.00049863,120]
[320921674,1711710652693,-1651.49,0.00049863,120]
[320921675,1711710652704,-500.0,0.00049863,120]
[320921676,1711710652716,-693.8,0.00049863,120]
[320921677,1711710652727,-500.0,0.00049863,120]
[320921678,1711710652738,-846.89,0.00049863,120]
[320921679,1711710652749,-1205.27,0.00049863,120]
[320921680,1711710652761,-1377.59,0.00049863,120]
[320921681,1711710652773,-500.0,0.00049863,120]
[320921682,1711710652784,-772.01,0.00049863,120]
[320921683,1711710652797,-500.0,0.00049863,120]
[320921684,1711710652811,-1726.42,0.00049863,120]
[320921685,1711710652823,-834.28,0.00049863,120]
[320921686,1711710652836,-7657.04,0.00049863,120]
[320921687,1711710652850,-500.0,0.00049863,120]
[320921688,1711710652863,-1359.1,0.00049863,120]
[320921689,1711710652873,-500.0,0.00049863,120]
[320921690,1711710652884,-610.35,0.00049863,120]
[320921691,1711710652894,-933.59,0.00049863,120]
[320921692,1711710652904,-500.0,0.00049863,120]
[320921693,1711710652915,-815.82,0.00049863,120]
[320921694,1711710652926,-16927.52,0.00049863,120]
[320921695,1711710652938,-1680.26,0.00049863,120]
[320921696,1711710652949,-668.43,0.00049863,120]
[320921697,1711710652961,-2121.86,0.00049863,120]
[320921698,1711710652973,-500.0,0.00049863,120]
[320921699,1711710652985,-982.25,0.00049863,120]
[320921700,1711710652996,-500.0,0.00049863,120]
[320921701,1711710653006,-1194.36,0.00049863,120]
[320921702,1711710653016,-1114.26,0.00049863,120]
[320921703,1711710653027,-520.39,0.00049863,120]
[320921704,1711710653037,-500.0,0.00049863,120]
[320921705,1711710653047,-500.0,0.00049863,120]
[320921706,1711710653058,-721.54,0.00049863,120]
[320921707,1711710653068,-1074.5,0.00049863,120]
[320921708,1711710653078,-500.0,0.00049863,120]
[320921709,1711710653089,-500.0,0.00049863,60]
[320921710,1711710653099,-921.73,0.00049863,120]
[320921711,1711710653109,-1291.61,0.00049863,120]
[320921712,1711710653120,-1239.65,0.00049863,120]
[320921713,1711710653130,-500.0,0.00049863,120]
[320921714,1711710653141,-500.0,0.00049863,120]
[320921715,1711710653152,-686.91,0.00049863,120]
[320921716,1711710653162,-500.0,0.00049863,120]
[320921717,1711710653173,-6084.84,0.00049863,120]
[320921718,1711710653183,-1183.44,0.00049863,120]
[320921719,1711710653193,-3042.47,0.00049863,120]
[320921720,1711710653204,-651.34,0.00049863,120]
[320921721,1711710653214,-3410.37,0.00049863,120]
[320921722,1711710653224,-810.42,0.00049863,120]
[320921723,1711710653235,-1684.01,0.00049863,120]
[320921724,1711710653245,-799.78,0.00049863,120]
[320921725,1711710653256,-500.0,0.00049863,120]
[320921726,1711710653266,-485.89892939,0.00049863,120]
[320921727,1711710653277,-2073.54,0.00049863,120]
[320921728,1711710653287,-567.77,0.00049863,120]
[320921729,1711710653297,-500.0,0.00049863,120]
[320921730,1711710653307,-500.0,0.00049863,120]
[320921731,1711710653318,-947.75,0.00049863,120]
[320921732,1711710653329,-500.0,0.00049863,120]
[320921733,1711710653341,-500.0,0.00049863,120]
[320921734,1711710653352,-1168.41,0.00049863,120]
[320921735,1711710653362,-739.84,0.00049863,120]
[320921736,1711710653373,-611.16,0.00049863,120]
[320921737,1711710653385,-500.0,0.00049863,120]
[320921738,1711710653396,-500.0,0.00049863,120]
[320921739,1711710653409,-1516.89,0.00049863,120]
[320921740,1711710653422,-565.45,0.00049863,120]
[320921741,1711710653433,-500.0,0.00049863,120]
[320921742,1711710653444,-915.09,0.00049863,120]
[320921743,1711710653455,-1327.55,0.00049863,120]
[320921744,1711710653468,-2105.94,0.00049863,120]
[320921745,1711710653479,-555.47,0.00049863,120]
[320921746,1711710653490,-1465.08,0.00049863,120]
[320921747,1711710653500,-500.0,0.00049863,120]
[320921748,1711710653510,-1119.02,0.00049863,120]
[320921749,1711710653521,-2801.15,0.00049863,120]
[320921750,1711710653532,-500.0,0.00049863,120]
[320921751,1711710653542,-1590.52,0.00049863,120]
[320921752,1711710653554,-1260.15,0.00049863,120]
[320921753,1711710653566,-897.12,0.00049863,120]
[320921754,1711710653577,-631.86510443,0.00049863,120]
[320921755,1711710653589,-500.0,0.00049863,120]
[320921756,1711710653600,-500.0,0.00049863,120]
[320921757,1711710653610,-987.13,0.00049863,120]
[320921758,1711710653621,-821.77,0.00049863,120]
[320921759,1711710653632,-500.0,0.00049863,120]
[320921760,1711710653644,-1164.64,0.00049863,120]
[320921761,1711710653655,-1208.36,0.00049863,120]
[320921762,1711710653666,-11808.29,0.00049863,120]
[320921763,1711710653676,-2773.26,0.00049863,120]
[320921764,1711710653687,-579.48,0.00049863,120]
[320921765,1711710653697,-500.0,0.00049863,120]
[320921766,1711710653708,-500.0,0.00049863,120]
[320921767,1711710653725,-857.42,0.00049863,120]
[320921768,1711710653737,-500.0,0.00049863,120]
[320921769,1711710653749,-3628.52,0.00049863,120]
[320921770,1711710653761,-500.0,0.00049863,120]
[320921771,1711710653773,-500.0,0.00049863,120]
[320921772,1711710653784,-909.86,0.00049863,120]
[320921773,1711710653796,-1522.9,0.00049863,120]
[320921774,1711710653807,-500.0,0.00049863,120]
[320921775,1711710653819,-804.38,0.00049863,120]
[320921776,1711710653830,-500.0,0.00049863,120]
[320921777,1711710653840,-2799.29,0.00049863,120]
[320921778,1711710653851,-1620.87,0.00049863,120]
[320921779,1711710653861,-885.3,0.00049863,120]
[320921780,1711710653873,-904.72,0.00049863,120]
[320921781,1711710653884,-960.55,0.00049863,120]
[320921782,1711710653894,-602.06,0.00049863,120]
[320921783,1711710653905,-1913.4,0.00049863,120]
[320921784,1711710653916,-500.0,0.00049863,120]
[320921785,1711710653927,-1273.78,0.00049863,120]
[320921786,1711710653937,-500.0,0.00049863,120]
[320921787,1711710653948,-742.11,0.00049863,120]
[320921788,1711710653960,-1248.65,0.00049863,21]
[320921789,1711710653972,-968.95,0.00049863,120]
[320921790,1711710653982,-1163.45,0.00049863,120]
[320921791,1711710653992,-691.01,0.00049863,120]
[320921792,1711710654002,-583.87693331,0.00049863,120]
[320921793,1711710654013,-1903.05,0.00049863,120]
[320921794,1711710654024,-705.61,0.00049863,120]
[320921795,1711710654034,-3676.12,0.00049863,120]
[320921796,1711710654044,-500.0,0.00049863,120]
[320921797,1711710654055,-732.51,0.00049863,120]
[320921798,1711710654064,-3161.14,0.00049863,120]
[320921799,1711710654075,-433.40343587,0.00049863,120]
[320921800,1711710654086,-500.0,0.00049863,120]
[320921801,1711710654096,-516.41,0.00049863,120]
[320921802,1711710654107,-526.41,0.00049863,120]
[320921803,1711710654117,-1058.48,0.00049863,120]
[320921804,1711710654127,-963.86,0.00049863,120]
[320921805,1711710654137,-789.66,0.00049863,120]
[320921806,1711710654148,-1501.36,0.00049863,120]
[320921807,1711710654158,-500.0,0.00049863,120]
[320921808,1711710654168,-621.96,0.00049863,120]
[320921809,1711710654179,-229.53459373,0.00049863,120]
[320921810,1711710654189,-500.0,0.00049863,120]
[320921811,1711710654200,-263.23351248,0.00049863,120]
[320921812,1711710654211,-753.8,0.00049863,120]
[320921813,1711710654222,-1147.13,0.00049863,120]
[320921814,1711710654233,-500.0,0.00049863,120]
[320921815,1711710654243,-500.0,0.00049863,120]
[320921816,1711710654254,-2333.25,0.00049863,120]
[320921817,1711710654265,-1023.54,0.00049863,120]
[320921818,1711710654275,-500.0,0.00049863,120]
[320921819,1711710654286,-440.70977667,0.00049863,120]
[320921820,1711710654296,-894.67,0.00049863,120]
[320921821,1711710654306,-1616.3,0.00049863,120]
[320921822,1711710654317,-718.12,0.00049863,120]
[320921823,1711710654327,-1247.71,0.00049863,120]
[320921824,1711710654338,-500.0,0.00049863,120]
[320921825,1711710654348,-334.48149333,0.00049863,120]
[320921826,1711710654358,-500.0,0.00049863,120]
[320921827,1711710654368,-500.0,0.00049863,120]
[320921828,1711710654379,-500.0,0.00049863,120]
[320921829,1711710654389,-500.0,0.00049863,120]
[320921830,1711710654399,-1571.67,0.00049863,120]
[320921831,1711710654410,-2521.44,0.00049863,120]
[320921832,1711710654420,-500.0,0.00049863,120]
[320921833,1711710654430,-517.07,0.00049863,120]
[320921834,1711710654440,-3522.2,0.00049863,120]
[320921835,1711710654450,-500.0,0.00049863,120]
[320921836,1711710654460,-500.0,0.00049863,120]
[320921837,1711710654472,-983.13,0.00049863,120]
[320921838,1711710654482,-2854.73,0.00049863,120]
[320921839,1711710654493,-150.0,0.00049863,30]
[320921840,1711710654503,-150.0,0.00049863,30]
[320921841,1711710654513,-150.0,0.00049863,30]
[320921842,1711710654523,-150.0,0.00049863,30]
[320921843,1711710654534,-177.0,0.0004987,15]
[320921844,1711710654545,-150.5,0.0004988,15]
[320921845,1711710654554,-150.5,0.0004989,15]
[320921846,1711710654565,-150.0,0.00049898,7]
[320921847,1711710654575,-150.0,0.00049899,30]
[320921848,1711710654586,-1000.0,0.00049899,120]
[320921849,1711710654596,-559.62274197,0.00049899,4]
[320921850,1711710654607,-239620.27908258,0.000499,36]
[320921851,1711710654617,-162886.55576336,0.000499,21]
[320921852,1711710654628,-2300.0,0.000499,18]
[320921853,1711710654639,-150.0,0.00049935,30]
[320921854,1711710654652,-150.0,0.00049955,30]
[320921855,1711710654662,-150.5,0.0004997,15]
[320921856,1711710654671,-150.0,0.00049971,30]
[320921857,1711710654680,-150.5,0.0004998,15]
[320921858,1711710654690,-150.0,0.00049984,30]
[320921859,1711710654699,-150.5,0.0004999,15]
[320921860,1711710654708,-500.0,0.00049999,30]
[320921861,1711710654718,-1400.0,0.0005,30]
[320921862,1711710654729,-150.0,0.0005,27]
[320921863,1711710654738,-4939.50785278,0.0005,120]
[320921864,1711710654748,-19511.79966354,0.0005,4]
[320921865,1711710654758,-19158.28292643,0.0005,30]
[320921866,1711710654767,-2313.0,0.0005,16]
[320921867,1711710654776,-5070.0,0.0005,10]
[320921868,1711710654786,-5300.0,0.0005,2]
[320921869,1711710654795,-5300.0,0.0005,30]
[320921870,1711710654804,-5275.0,0.0005,120]
[320921871,1711710654813,-150.0,0.0005,10]
[320921872,1711710654823,-150.0,0.00050006,30]
[320921873,1711710654833,-150.0,0.00050042,30]
[320921874,1711710654842,-150.0,0.00050047,30]
[320921875,1711710654851,-150.0,0.00050078,30]
[320921876,1711710654861,-150.0,0.00050105,30]
[320921877,1711710654870,-150.0,0.00050114,30]
[320921878,1711710655211,-153.21258999,0.00050133,2]
[320921879,1711710655232,-500.0,0.00050136,120]
[320921880,1711710655254,-500.0,0.00050136,120]
[320921881,1711710655273,-500.0,0.00050136,120]
[320921882,1711710655283,-500.0,0.00050136,120]
[320921883,1711710655292,-500.0,0.00050136,120]
[320921884,1711710655301,-500.0,0.00050136,120]
[320921885,1711710655310,-500.0,0.00050136,120]
[320921886,1711710655319,-500.0,0.00050136,120]
[320921887,1711710655328,-500.0,0.00050136,120]
[320921888,1711710655337,-500.0,0.00050136,120]
[320921889,1711710655347,-563.98,0.00050136,2]
[320921890,1711710655356,-500.0,0.00050136,120]
[320921891,1711710655366,-500.0,0.00050136,120]
[320921892,1711710655374,-500.0,0.00050136,120]
[320921893,1711710655383,-644.52058849,0.00050136,120]
[320921894,1711710655392,-500.0,0.00050136,120]
[320921895,1711710655401,-500.0,0.00050136,120]
[320921896,1711710655410,-500.0,0.00050136,120]
[320921897,1711710655420,-500.0,0.00050136,120]
[320921898,1711710655429,-530.05,0.00050136,120]
[320921899,1711710655438,-500.0,0.00050136,120]
[320921900,1711710655447,-500.0,0.00050136,120]
[320921901,1711710655456,-500.0,0.00050136,120]
[320921902,1711710655466,-500.0,0.00050136,120]
[320921903,1711710655475,-518.89,0.00050136,120]
[320921904,1711710655484,-500.0,0.00050136,120]
[320921905,1711710655493,-500.0,0.00050136,120]
[320921906,1711710655502,-500.0,0.00050136,120]
[320921907,1711710655511,-2712.05,0.00050136,120]
[320921908,1711710655521,-543.34,0.00050136,120]
[320921909,1711710655530,-500.0,0.00050136,120]
[320921910,1711710655539,-500.0,0.00050136,120]
[320921911,1711710655548,-559.05,0.00050136,120]
[320921912,1711710655557,-260.81896706,0.00050136,120]
[320921913,1711710655566,-500.0,0.00050136,120]
[320921914,1711710655576,-500.0,0.00050136,120]
[320921915,1711710655586,-500.0,0.00050136,120]
[320921916,1711710655595,-500.0,0.00050136,120]
[320921917,1711710655604,-394.89012985,0.00050136,120]
[320921918,1711710655613,-500.0,0.00050136,120]
[320921919,1711710655623,-843.31,0.00050136,120]
[320921920,1711710655632,-500.0,0.00050136,120]
[320921921,1711710655642,-500.0,0.00050136,120]
[320921922,1711710655653,-500.0,0.00050136,120]
[320921923,1711710655662,-500.0,0.00050136,120]
[320921924,1711710655672,-500.0,0.00050136,120]
[320921925,1711710655683,-500.0,0.00050136,120]
[320921926,1711710655692,-500.0,0.00050136,120]
[320921927,1711710655702,-497.33262781,0.00050136,120]
[320921928,1711710655712,-500.0,0.00050136,120]
[320921929,1711710655724,-500.0,0.00050136,120]
[320921930,1711710655735,-210.45816739,0.00050136,120]
[320921931,1711710655744,-620.95,0.00050136,120]
[320921932,1711710655755,-500.0,0.00050136,120]
[320921933,1711710655766,-500.0,0.00050136,120]
[320921934,1711710655777,-500.0,0.00050136,120]
[320921935,1711710655786,-500.0,0.00050136,120]
[320921936,1711710655795,-500.0,0.00050136,120]
[320921937,1711710655805,-500.0,0.00050136,120]
[320921938,1711710655814,-500.0,0.00050136,120]
[320921939,1711710655823,-500.0,0.00050136,2]
[320921940,1711710655832,-550.37,0.00050136,120]
[320921941,1711710655842,-191.04,0.00050136,120]
[320921942,1711710655851,-500.0,0.00050136,120]
[320921943,1711710655860,-500.0,0.00050136,120]
[320921944,1711710655869,-500.0,0.00050136,120]
[320921945,1711710655878,-500.0,0.00050136,120]
[320921946,1711710655888,-500.0,0.00050136,120]
[320921947,1711710655897,-500.0,0.00050136,120]
[320921948,1711710655906,-500.0,0.00050136,120]
[320921949,1711710655916,-500.0,0.00050136,120]
[320921950,1711710655925,-500.0,0.00050136,120]
[320921951,1711710655935,-530.13,0.00050136,120]
[320921952,1711710655944,-500.0,0.00050136,120]
[320921953,1711710655953,-500.0,0.00050136,120]
[320921954,1711710655963,-500.0,0.00050136,120]